bitfinex/quotes_ETHUSD_20220731
["timestamp","ask_amount","ask_price","bid_price","bid_amount"]
[1659289654362,0.14395594,1705.5,1705.2,3.79018263]
[1659289654737,0.14191213,1705.5,1705.2,3.79018263]
[1659289655244,5.25789,1705.6,1705.2,3.79018263]
[1659289655628,1.75789,1705.6,1705.2,3.79018263]
[1659289656926,0.04930005,1705.5,1705.2,3.79018263]
[1659289659781,5.25789,1705.6,1705.2,3.79018263]
[1659289660183,0.29298,1705.6,1705.2,3.79018263]
[1659289660682,3.79298,1705.6,1705.2,3.79018263]
[1659289660866,0.29298,1705.6,1705.2,3.79018263]
[1659289661706,0.29298,1705.6,1705.2,0.47036736]
[1659289661707,4.36302672,1705.5,1705.2,0.47036736]
[1659289661914,3.64191213,1705.3,1704.9,0.05]
[1659289662114,2.89804672,1705.2,1704.6,0.05]
[1659289662265,2.89804672,1705.2,1704.4,10.7038]
[1659289662266,6.39804672,1705.2,1704.7,0.61193769]
[1659289662465,2.89804672,1705.2,1704.7,0.61193769]
[1659289662702,3.64191213,1705.1,1704.7,0.61193769]
[1659289662883,9.40330813,1705.1,1704.7,0.61193769]
[1659289663080,9.40330813,1705.1,1704.4,11.7538]
[1659289663081,5.90330813,1705.1,1704.4,11.7538]
[1659289663408,3.5,1705.0,1704.4,9.0563]
[1659289663587,3.5,1705.0,1704.4,9.11192672]
[1659289664120,3.5,1705.0,1704.5,3.0]
[1659289664273,3.7931,1705.0,1704.5,3.0]
[1659289664474,0.2931,1705.0,1704.5,3.0]
[1659289665306,0.14191213,1704.9,1704.5,3.0]
[1659289666203,0.63782435,1704.9,1704.5,3.0]
[1659289666518,3.1423,1705.1,1704.8,1.244]
[1659289666827,2.8423,1705.1,1705.0,1.231]
[1659289666973,0.14191213,1705.1,1704.9,0.17598436]
[1659289667176,0.14191213,1705.1,1704.8,1.244]
[1659289667809,0.14191213,1705.1,1704.6,1.76384142]
[1659289668012,0.14191213,1705.0,1704.6,1.76384142]
[1659289668382,0.14191213,1705.0,1704.6,1.76618463]
[1659289669343,0.14191213,1705.0,1704.6,1.76384142]
[1659289672699,0.14191213,1705.0,1704.6,5.26384142]
[1659289672919,0.14191213,1705.0,1704.7,3.0]
[1659289673261,0.14191213,1705.0,1704.6,1.76384142]
[1659289673424,0.14191213,1705.0,1704.7,0.17598436]
[1659289679150,0.14191213,1705.0,1704.6,1.58785706]
[1659289679348,0.13857004,1705.0,1704.6,1.58785706]
[1659289679572,0.04922008,1705.1,1704.8,1.245]
[1659289679775,8.2875,1705.4,1705.0,1.245]
[1659289679983,8.2375,1705.4,1705.2,1.245]
[1659289680131,13.6113,1705.7,1705.2,1.245]
[1659289680323,2.89804672,1705.6,1705.2,1.545]
[1659289681382,0.04848279,1705.4,1705.2,1.545]
[1659289683352,0.04848279,1705.4,1705.2,1.245]
[1659289683599,6.60972364,1705.3,1704.8,0.05]
[1659289683800,0.13857004,1705.1,1704.7,3.32380292]
[1659289684376,0.13857004,1705.1,1704.7,0.61200292]
[1659289684565,0.13857004,1704.8,1704.7,0.61200292]
[1659289684775,0.13857004,1704.6,1704.3,0.51627928]
[1659289685076,0.13857004,1704.6,1704.1,0.25]
[1659289685077,3.03661676,1704.6,1704.1,0.25]
[1659289685288,0.13857004,1704.3,1704.1,0.25]
[1659289685513,0.13857004,1704.3,1704.1,0.54240109]
[1659289685811,0.13857004,1704.3,1704.1,0.25]
[1659289685981,0.13857004,1704.2,1704.1,0.25]
[1659289689967,0.18691888,1704.2,1704.1,0.25]
[1659289693420,0.04834884,1704.2,1704.1,0.25]
[1659289693620,0.04834884,1704.2,1704.1,3.25]
[1659289694120,0.04834884,1704.2,1704.1,3.75]
[1659289694481,0.05,1704.6,1704.1,8.16203462]
[1659289694685,0.04757323,1704.7,1704.1,11.56753364]
[1659289696106,1.51324323,1704.7,1704.1,11.56753364]
[1659289696346,1.51324323,1704.7,1704.3,1.241]
[1659289696551,0.04757323,1704.7,1704.4,3.5]
[1659289696765,0.04757323,1704.7,1704.5,3.3]
[1659289698923,0.04757323,1704.7,1704.3,4.541]
[1659289699522,0.04757323,1704.7,1704.3,4.64809409]
[1659289701926,1.51324323,1704.7,1704.3,4.64809409]
[1659289703941,1.51107102,1704.7,1704.3,4.64809409]
[1659289705279,0.04540102,1704.7,1704.3,4.64809409]
[1659289706974,4.61441102,1704.8,1704.3,4.64809409]
[1659289707180,0.04683954,1704.7,1704.3,4.64809409]
[1659289708137,1.51246954,1704.7,1704.3,4.64809409]
[1659289708484,0.04683954,1704.7,1704.3,4.64809409]
[1659289708656,3.23802626,1704.7,1704.3,4.64809409]
[1659289708852,3.23802626,1704.7,1704.3,3.40709409]
[1659289709367,4.70371626,1704.7,1704.3,3.40709409]
[1659289709757,4.70301524,1704.7,1704.3,3.40709409]
[1659289710774,1.60430004,1704.6,1704.3,3.3]
[1659289711158,1.89746004,1704.6,1704.3,3.3]
[1659289711397,1.46581,1704.5,1704.3,3.3]
[1659289711598,1.46581,1704.5,1704.2,3.3]
[1659289711772,0.43173004,1704.6,1704.2,3.3]
[1659289711971,1.46581,1704.5,1704.2,3.3]
[1659289712196,0.43173004,1704.6,1704.2,3.3]
[1659289712411,1.89743004,1704.6,1704.2,3.3]
[1659289712984,1.74743004,1704.6,1704.2,3.3]
[1659289713190,6.22047974,1704.7,1704.4,4.741]
[1659289713191,0.04609867,1704.7,1704.4,4.741]
[1659289713393,0.04609867,1704.7,1704.6,1.229]
[1659289713577,0.05,1705.1,1704.6,4.729]
[1659289713801,7.6538,1705.2,1704.8,1.229]
[1659289714003,10.55184672,1705.2,1704.8,1.229]
[1659289716485,0.13857004,1705.0,1704.7,2.95]
[1659289717029,0.13857004,1704.7,1704.4,0.05]
[1659289717228,3.09804672,1704.9,1704.3,7.8518]
[1659289717229,2.89804672,1704.9,1704.3,7.8518]
[1659289717917,3.19116672,1704.9,1704.3,7.8518]
[1659289718291,4.65678672,1704.9,1704.4,3.0]
[1659289718492,3.19116672,1704.9,1704.4,3.0]
[1659289718938,0.13857004,1704.7,1704.4,3.0]
[1659289719319,1.46562,1704.8,1704.4,3.0]
[1659289720699,3.37752547,1704.9,1704.4,3.0]
[1659289720700,4.84300547,1704.9,1704.4,3.0]
[1659289720896,2.94583543,1704.9,1704.4,3.0]
[1659289723125,4.70438543,1704.9,1704.4,3.0]
[1659289724798,8.20438543,1704.9,1704.4,3.0]
[1659289725063,4.70438543,1704.9,1704.4,3.0]
[1659289726890,4.70438543,1704.9,1704.4,3.02202469]
[1659289727392,8.20438543,1704.9,1704.8,0.5]
[1659289727555,4.70438543,1704.9,1704.8,0.5]
[1659289727754,4.41129543,1704.9,1704.8,0.5]
[1659289727989,4.41129543,1704.9,1704.8,0.45]
[1659289729690,2.94583543,1704.9,1704.8,0.45]
[1659289730289,4.41130543,1704.9,1704.8,0.45]
[1659289730737,2.94583543,1704.9,1704.8,0.45]
[1659289732188,4.41130543,1704.9,1704.8,0.45]
[1659289732606,4.41130543,1704.9,1704.8,0.62761252]
[1659289732828,4.41130543,1704.9,1704.8,0.9228423]
[1659289740864,2.94583543,1704.9,1704.8,0.9228423]
[1659289741381,0.04778871,1704.9,1704.8,0.9228423]
[1659289741740,0.04778871,1704.9,1704.8,1.24387116]
[1659289742959,0.04778871,1704.9,1704.8,3.9228423]
[1659289743266,0.04778871,1704.9,1704.8,0.9228423]
[1659289749401,0.04511889,1704.9,1704.8,0.9228423]
[1659289753988,0.09048067,1704.9,1704.8,0.9228423]
[1659289765473,2.93852739,1704.9,1704.8,0.74522978]
[1659289765673,6.73852739,1704.9,1704.8,0.74522978]
[1659289766177,6.78388917,1704.9,1704.8,0.74522978]
[1659289766555,6.92245921,1704.9,1704.8,0.74522978]
[1659289766953,11.31943921,1704.9,1704.8,0.74522978]
[1659289767212,11.27407743,1704.9,1704.8,0.77474765]
[1659289767405,7.77407743,1704.9,1704.8,0.77474765]
[1659289768193,7.77407743,1704.9,1704.8,0.97474765]
[1659289770432,11.27407743,1704.9,1704.8,0.97474765]
[1659289770639,7.77407743,1704.9,1704.8,0.97474765]
[1659289774436,12.80057004,1704.5,1704.4,0.05]
[1659289774715,4.13857004,1704.2,1704.1,0.75]
[1659289774858,10.83661676,1704.2,1704.1,0.75]
[1659289775087,11.33661676,1704.2,1704.1,0.75]
[1659289775727,7.83661676,1704.2,1704.1,0.75]
[1659289776727,7.49804672,1704.2,1704.1,0.75]
[1659289777073,3.2430148,1704.2,1704.1,0.75]
[1659289777464,2.9430148,1704.2,1704.1,0.75]
[1659289780455,4.75379915,1704.2,1704.1,0.75]
[1659289780796,4.75379915,1704.2,1704.1,3.75]
[1659289781098,4.75379915,1704.2,1704.1,0.75]
[1659289781455,7.68633915,1704.2,1704.1,0.75]
[1659289783281,7.98633915,1704.2,1704.1,0.75]
[1659289786392,14.50057004,1704.1,1704.0,0.3]
[1659289786599,23.18932283,1704.1,1704.0,0.3]
[1659289786805,29.62012283,1704.1,1704.0,0.3]
[1659289786971,26.64635362,1704.1,1704.0,0.3]
[1659289787180,9.32884672,1704.1,1704.0,0.2244]
[1659289787575,9.02884672,1704.1,1704.0,0.2244]
[1659289788079,9.02884672,1704.1,1704.0,0.25145045]
[1659289788721,10.49505672,1704.1,1704.0,0.25145045]
[1659289793551,20.79562676,1704.1,1704.0,0.25145045]
[1659289793993,20.45705672,1704.1,1704.0,0.25145045]
[1659289794149,16.65705672,1704.1,1704.0,0.25145045]
[1659289797088,16.95705672,1704.1,1704.0,0.25145045]
[1659289797251,16.95705672,1704.1,1704.0,5.045e-05]
[1659289797850,16.95705672,1704.1,1703.8,0.17493295]
[1659289798053,13.75960672,1704.0,1703.5,0.05]
[1659289798386,2.89804672,1703.9,1703.3,1.277]
[1659289798699,4.65786672,1703.9,1703.3,4.227]
[1659289798861,3.19804672,1703.8,1703.4,3.0]
[1659289799061,4.65788672,1703.7,1703.4,3.0]
[1659289799289,3.19134672,1703.7,1703.3,4.227]
[1659289800405,1.46654,1703.6,1703.3,4.227]
[1659289800567,3.19804672,1703.7,1703.3,4.227]
[1659289800769,4.66451672,1703.7,1703.3,4.227]
[1659289801407,4.95780672,1703.7,1703.3,4.227]
[1659289801712,1.46651,1703.6,1703.3,4.227]
[1659289802355,1.46651,1703.6,1703.3,1.227]
[1659289802581,1.75981,1703.6,1703.3,1.227]
[1659289802848,1.80471104,1703.6,1703.3,1.227]
[1659289803833,0.04490104,1703.6,1703.3,1.227]
[1659289805186,0.04490104,1703.6,1703.3,1.177]
[1659289805915,1.51140104,1703.6,1703.3,1.177]
[1659289807761,0.04490104,1703.6,1703.3,1.177]
[1659289809547,0.29328,1703.7,1703.3,1.177]
[1659289809919,1.75972,1703.7,1703.3,1.177]
[1659289810536,1.46644,1703.7,1703.3,1.177]
[1659289810740,2.10429435,1703.8,1703.3,1.177]
[1659289811752,0.04485012,1703.5,1703.3,1.177]
[1659289816818,0.04485012,1703.5,1703.3,1.477]
[1659289817756,0.04485012,1703.5,1703.3,4.977]
[1659289817964,0.04485012,1703.5,1703.4,3.0]
[1659289818112,0.05,1703.9,1703.4,7.89804672]
[1659289818316,0.05,1704.1,1703.8,1.231]
[1659289818556,14.0094,1704.3,1704.0,1.227]
[1659289818752,10.7022,1704.3,1704.0,1.227]
[1659289819317,12.46129,1704.3,1704.0,1.227]
[1659289819874,15.65933672,1704.3,1704.0,1.227]
[1659289820590,1.46601,1704.2,1704.0,1.227]
[1659289820792,1.46601,1704.2,1703.8,1.22928445]
[1659289821205,1.46601,1704.2,1703.8,1.227]
[1659289821517,4.65726672,1704.2,1703.8,1.227]
[1659289821718,11.39257437,1704.3,1703.8,1.227]
[1659289822020,17.79062109,1704.3,1703.8,1.227]
[1659289822193,14.29062109,1704.3,1703.8,1.227]
[1659289822381,15.75658109,1704.3,1703.8,1.227]
[1659289822928,14.58382109,1704.3,1703.8,1.227]
[1659289823428,1.466,1704.2,1703.8,1.69352814]
[1659289823818,14.29062109,1704.3,1703.8,1.69352814]
[1659289823991,14.29062109,1704.3,1703.8,3.15937814]
[1659289824192,14.29062109,1704.3,1703.9,3.0]
[1659289824393,3.15456002,1704.3,1704.0,1.231]
[1659289824596,0.04566002,1704.3,1704.2,1.231]
[1659289825294,3.5425,1704.6,1704.2,1.231]
[1659289825538,2.89804672,1704.5,1704.2,1.231]
[1659289826129,5.00825,1704.6,1704.2,1.231]
[1659289826130,6.44054672,1704.6,1704.2,1.231]
[1659289826444,7.90629672,1704.6,1704.2,1.231]
[1659289826929,7.90629672,1704.6,1704.2,0.0656039]
[1659289827302,1.46581,1704.5,1704.2,0.0656039]
[1659289827502,4.36385672,1704.5,1704.2,0.0656039]
[1659289827707,2.89804672,1704.4,1704.2,0.0656039]
[1659289827949,4.65729672,1704.4,1704.2,0.0656039]
[1659289828103,4.65711672,1704.4,1704.2,0.0656039]
[1659289828746,0.0888884,1704.3,1704.0,1.22931005]
[1659289828948,0.0888884,1704.3,1704.0,1.227]
[1659289830345,0.04468345,1704.3,1704.0,1.227]
[1659289831124,0.04468345,1704.3,1704.0,1.52013]
[1659289831517,0.04468345,1704.3,1704.2,1.231]
[1659289831949,0.04468345,1704.3,1704.2,4.231]
[1659289832122,0.04468345,1704.3,1704.2,1.231]
[1659289832925,0.08883956,1704.3,1704.2,1.231]
[1659289833563,5.86355,1705.4,1704.5,2.15511934]
[1659289833782,3.0848,1705.8,1705.0,3.5]
[1659289833942,3.0848,1705.8,1705.1,3.0]
[1659289834631,5.8161,1705.8,1705.1,3.0]
[1659289834956,11.9781,1705.8,1705.1,3.0]
[1659289835154,5.8161,1705.8,1705.1,3.0]
[1659289835626,5.8161,1705.8,1705.1,3.3]
[1659289836124,3.0848,1705.8,1705.2,3.5]
[1659289836327,3.0848,1705.8,1705.4,1.527]
[1659289836549,3.0848,1705.8,1705.4,1.227]
[1659289836550,12.7468,1705.8,1705.4,1.227]
[1659289836828,6.162,1705.8,1705.4,1.227]
[1659289837171,2.89804672,1705.7,1705.4,1.227]
[1659289840362,2.89804672,1705.7,1705.2,1.23330843]
[1659289840705,2.89804672,1705.7,1705.2,0.00230843]
[1659289840890,7.86320672,1705.7,1705.1,0.29783791]
[1659289841063,2.89804672,1705.6,1705.0,4.70487671]
[1659289841459,2.89804672,1705.6,1705.1,0.00230856]
[1659289842311,2.89804672,1705.6,1705.0,1.6971535]
[1659289842312,3.19804672,1705.6,1705.0,1.6971535]
[1659289842605,2.89804672,1705.5,1705.0,1.6971535]
[1659289843795,2.89804672,1705.5,1705.0,4.6971535]
[1659289844487,0.13857004,1705.2,1705.0,0.4701535]
[1659289844685,0.13857004,1705.2,1704.6,1.277]
[1659289844686,2.89804672,1705.1,1704.6,1.277]
[1659289844909,2.89804672,1705.1,1704.6,1.227]
[1659289845065,3.19804672,1705.1,1704.6,1.227]
[1659289845260,3.19804672,1705.1,1704.6,1.40633755]
[1659289845690,0.13857004,1705.0,1704.6,1.40633755]
[1659289846581,3.5,1705.0,1704.6,1.40633755]
[1659289846784,3.54276107,1705.1,1704.6,1.40633755]
[1659289847325,7.04276107,1705.1,1704.6,1.40633755]
[1659289847982,3.54276107,1705.1,1704.6,1.40633755]
[1659289850040,3.54276107,1705.1,1704.6,4.40633755]
[1659289850218,0.05,1705.3,1704.9,4.731]
[1659289850529,0.04982681,1705.1,1705.0,3.06142996]
[1659289850717,0.04982681,1705.1,1705.0,4.29242996]
[1659289851324,0.04982681,1705.1,1705.0,4.231]
[1659289853960,0.04712925,1705.1,1705.0,4.231]
[1659289854113,0.04712925,1705.1,1705.0,1.231]
[1659289854913,0.04712925,1705.1,1705.0,1.52325365]
[1659289856323,0.04712925,1705.1,1705.0,4.52325365]
[1659289857165,0.04712925,1705.1,1705.0,1.52325365]
[1659289857319,0.04712925,1705.1,1705.0,4.52325365]
[1659289857533,0.04712925,1705.1,1705.0,1.52325365]
[1659289857881,0.09733409,1705.1,1705.0,1.52325365]
[1659289861669,0.09733409,1705.1,1705.0,4.52325365]
[1659289863069,0.09733409,1705.1,1705.0,1.52325365]
[1659289867172,0.09733409,1705.1,1705.0,4.52325365]
[1659289870982,0.09733409,1705.1,1705.0,1.52325365]
[1659289874873,0.09377559,1705.1,1705.0,1.52325365]
[1659289875566,0.68277559,1705.1,1705.0,1.52325365]
[1659289875768,7.08082231,1705.1,1705.0,0.29225365]
[1659289875966,10.33812231,1705.1,1704.6,0.22933755]
[1659289876275,6.69804672,1705.0,1704.6,0.17933755]
[1659289876519,6.39804672,1704.9,1704.3,1.281]
[1659289876702,2.89804672,1704.8,1704.3,1.231]
[1659289876908,0.13857004,1704.6,1704.3,1.231]
[1659289877224,3.03661676,1704.6,1704.2,0.29736924]
[1659289877514,3.03661676,1704.6,1704.1,2.02172072]
[1659289877515,3.03661676,1704.6,1704.1,1.40959729]
[1659289878577,0.13857004,1704.4,1703.9,1.231]
[1659289879719,0.13857004,1704.4,1703.9,4.531]
[1659289880774,2.89804672,1704.3,1703.9,4.531]
[1659289882025,2.89804672,1704.3,1703.9,4.52892041]
[1659289882924,2.94764766,1704.3,1703.9,4.52892041]
[1659289883275,0.04960094,1704.3,1703.9,4.52892041]
[1659289883476,0.04960094,1704.3,1704.1,1.227]
[1659289884794,0.04960094,1704.3,1704.1,4.227]
[1659289885176,0.04960094,1704.3,1704.2,3.0]
[1659289885376,0.04960094,1704.3,1704.1,1.227]
[1659289886200,0.04960094,1704.3,1704.1,4.227]
[1659289887229,3.84471435,1704.5,1704.1,4.227]
[1659289887442,6.74276107,1704.5,1704.1,4.227]
[1659289888483,3.84471435,1704.5,1704.1,5.69263]
[1659289888905,0.34471435,1704.5,1704.1,5.69263]
[1659289889121,3.84471435,1704.5,1704.1,4.227]
[1659289889306,0.34471435,1704.5,1704.1,1.227]
[1659289890092,3.84471435,1704.5,1704.1,1.227]
[1659289890293,0.34471435,1704.5,1704.1,1.227]
[1659289890525,0.34471435,1704.5,1704.1,4.227]
[1659289890707,0.34471435,1704.5,1704.2,3.0]
[1659289890917,3.84471435,1704.5,1704.1,1.227]
[1659289891090,0.34471435,1704.5,1704.1,1.227]
[1659289891514,3.84471435,1704.5,1704.1,1.227]
[1659289891713,0.34471435,1704.5,1704.1,1.227]
[1659289892511,1.81067435,1704.5,1704.1,1.227]
[1659289893624,5.31067435,1704.5,1704.1,1.227]
[1659289895011,2.89804672,1704.4,1704.1,1.227]
[1659289895199,0.3,1704.3,1703.8,0.51652814]
[1659289895401,3.03661676,1704.2,1703.8,0.46652814]
[1659289895619,2.89804672,1704.1,1703.8,0.61226669]
[1659289895829,6.39804672,1704.1,1703.8,0.61226669]
[1659289896047,2.89804672,1704.1,1703.8,0.61226669]
[1659289896251,2.89804672,1704.0,1703.8,0.61226669]
[1659289899578,6.39804672,1704.0,1703.8,0.61226669]
[1659289899725,2.89804672,1704.0,1703.8,0.61226669]
[1659289899926,2.95179519,1704.0,1703.8,0.61226669]
[1659289903874,0.13857004,1703.9,1703.8,0.61226669]
[1659289904057,2.95179519,1704.0,1703.7,3.0]
[1659289904439,2.95179519,1704.0,1703.6,8.74312074]
[1659289905284,2.95179519,1704.0,1703.7,2.69716]
[1659289905592,2.95179519,1704.0,1703.8,3.0]
[1659289906181,2.94942774,1704.0,1703.8,3.0]
[1659289906781,0.05138102,1704.0,1703.9,1.231]
[1659289913616,0.05138102,1704.0,1703.9,1.181]
[1659289935690,0.04781268,1704.0,1703.9,1.181]
[1659289936838,0.04781268,1704.0,1703.9,1.131]
[1659289947145,0.04781268,1704.0,1703.9,1.081]
[1659289950352,2.737,1704.6,1703.9,1.081]
[1659289950353,11.7057,1704.7,1703.9,8.95146104]
[1659289950572,8.2057,1704.7,1704.6,4.39605]
[1659289950769,5.8108,1704.8,1704.6,7.39605]
[1659289950965,8.70884672,1704.8,1704.7,1.231]
[1659289951167,2.89804672,1704.8,1704.7,4.231]
[1659289951817,2.89804672,1704.8,1704.7,5.6964]
[1659289952033,3.19804672,1705.0,1704.7,5.6964]
[1659289952196,2.89804672,1705.0,1704.7,5.6964]
[1659289952795,5.65465156,1705.1,1704.9,1.227]
[1659289952979,0.05020484,1705.1,1705.0,10.25444]
[1659289953193,0.05020484,1705.1,1705.0,13.25444]
[1659289953632,0.05020484,1705.1,1705.0,3.0]
[1659289953633,3.53725156,1705.1,1705.0,3.0]
[1659289953796,7.38196591,1705.1,1704.7,1.46545]
[1659289954127,7.38196591,1705.1,1704.7,1.41545]
[1659289954128,6.53661676,1705.0,1704.7,1.41545]
[1659289954303,3.5,1704.9,1704.7,1.41545]
[1659289955028,3.09034395,1705.0,1704.7,1.70325812]
[1659289955029,7.18343395,1705.0,1704.7,1.70325812]
[1659289955231,7.18343395,1705.0,1704.7,1.87844005]
[1659289956293,3.84471435,1704.9,1704.7,0.46299005]
[1659289956531,3.84471435,1704.9,1704.7,0.28780812]
[1659289956711,0.45142966,1704.9,1704.6,1.46555]
[1659289956897,3.34947638,1704.9,1704.6,1.751631]
[1659289958319,3.34947638,1704.9,1704.7,1.238]
[1659289958489,3.34947638,1704.9,1704.7,5.70337]
[1659289958490,2.89804672,1704.8,1704.7,5.70337]
[1659289958690,2.89804672,1704.8,1704.7,4.46537]
[1659289959337,2.89804672,1704.8,1704.6,4.751631]
[1659289959546,2.89804672,1704.8,1704.6,4.46555]
[1659289959722,2.89804672,1704.8,1704.7,0.0666]
[1659289959922,2.89804672,1704.8,1704.7,0.13017]
[1659289960139,6.39804672,1704.8,1704.7,0.19375]
[1659289960337,2.89804672,1704.8,1704.7,0.19375]
[1659289961004,3.03661676,1704.8,1704.7,0.19375]
[1659289961205,12.89861676,1704.8,1704.7,0.19375]
[1659289961407,6.53661676,1704.8,1704.7,0.19375]
[1659289961606,9.71531676,1704.8,1704.7,0.19375]
[1659289961847,12.77861676,1704.8,1704.7,0.19375]
[1659289962049,12.64004672,1704.8,1704.7,0.19375]
[1659289962233,18.80204672,1704.8,1704.7,0.19375]
[1659289962760,12.64004672,1704.8,1704.7,0.19375]
[1659289963805,9.14004672,1704.8,1704.7,0.19375]
[1659289964236,12.64004672,1704.8,1704.7,0.19375]
[1659289966045,18.80204672,1704.8,1704.7,0.19375]
[1659289967423,18.80204672,1704.8,1704.5,0.17328401]
[1659289967424,14.50057004,1704.6,1704.5,0.17328401]
[1659289967761,14.50057004,1704.6,1704.0,1.238]
[1659289967762,3.33857004,1704.2,1704.1,0.05]
[1659289967985,3.13857004,1704.1,1703.9,0.61218924]
[1659289968122,6.03661676,1704.1,1703.9,0.61218924]
[1659289969068,0.13857004,1704.0,1703.9,0.61218924]
[1659289971566,0.13857004,1704.0,1703.9,2.07830924]
[1659289971779,0.13857004,1704.0,1703.9,5.07830924]
[1659289971967,2.9576,1704.3,1703.9,6.31630924]
[1659289972136,2.9576,1704.3,1703.9,10.94097924]
[1659289972137,0.0518834,1704.0,1703.9,10.94097924]
[1659289972336,0.0518834,1704.0,1703.9,12.17897924]
[1659289973469,0.0518834,1704.0,1703.9,12.293884]
[1659289973966,0.05187356,1704.3,1703.9,12.293884]
[1659289974176,0.05187356,1704.3,1704.2,1.238]
[1659289974887,0.05187356,1704.3,1704.2,4.238]
[1659289975962,0.34471435,1704.4,1704.3,1.46572]
[1659289976511,0.34471435,1704.4,1704.3,4.46572]
[1659289981368,0.34471435,1704.4,1704.3,4.75966142]
[1659289981568,0.34471435,1704.4,1704.3,4.93811894]
[1659289982179,3.38133111,1704.4,1704.3,3.47239894]
[1659289982503,3.38133111,1704.4,1704.3,0.47239894]
[1659289982812,3.38133111,1704.4,1704.3,3.0]
[1659289983109,3.38133111,1704.4,1704.2,1.238]
[1659289983818,3.38133111,1704.4,1704.2,1.2353924]
[1659289983976,6.53661676,1704.3,1704.0,4.46603]
[1659289984180,2.89804672,1704.2,1704.0,3.0]
[1659289984520,2.89804672,1704.2,1703.9,3.61218924]
[1659289984667,2.89804672,1704.2,1703.9,5.07832924]
[1659289985104,3.03661676,1704.2,1703.9,5.07832924]
[1659289985283,2.89804672,1704.1,1703.9,5.07832924]
[1659289985527,0.13857004,1704.0,1703.9,5.07832924]
[1659289987773,3.03661676,1704.0,1703.9,3.61218924]
[1659289988422,3.03661676,1704.0,1703.9,5.07834924]
[1659289989627,0.34471435,1704.2,1703.9,8.01029924]
[1659289989845,5.75734672,1704.3,1704.0,4.238]
[1659289990043,2.89804672,1704.3,1704.1,1.46589]
[1659289990268,3.55,1704.6,1704.1,4.39717]
[1659289990472,0.3,1704.7,1704.5,1.249]
[1659289990638,2.89804672,1704.6,1704.5,1.249]
[1659289993482,2.89804672,1704.6,1704.4,3.0]
[1659289993990,6.33857004,1704.5,1704.4,3.0]
[1659289994191,15.69861676,1704.5,1704.0,3.05]
[1659289994376,15.69861676,1704.5,1703.8,3.82044024]
[1659289994377,15.74584672,1704.4,1703.8,3.82044024]
[1659289994574,15.74584672,1704.4,1703.8,3.3]
[1659289994575,6.39804672,1704.3,1703.8,3.3]
[1659289994805,2.89804672,1704.2,1703.8,3.3]
[1659289995028,0.13857004,1704.1,1703.8,3.3]
[1659289995182,3.03661676,1704.1,1703.8,3.3]
[1659289995583,3.03661676,1704.1,1703.8,4.76616]
[1659289996231,2.89804672,1704.1,1703.9,2.07834868]
[1659289996381,2.89804672,1704.1,1703.9,5.07834868]
[1659289996583,2.89804672,1704.1,1703.9,4.46608]
[1659289997057,2.89804672,1704.1,1703.9,1.46608]
[1659289997553,2.89804672,1704.1,1703.9,3.31635239]
[1659289997737,2.89804672,1704.1,1704.0,3.0]
[1659289997938,2.89804672,1704.1,1704.0,4.466]
[1659289998959,2.89804672,1704.3,1704.0,4.466]
[1659289999120,8.4992,1704.5,1704.1,1.249]
[1659289999323,11.39724672,1704.5,1704.2,1.4657]
[1659289999663,3.19804672,1704.5,1704.2,4.4657]
[1659290000034,3.19804672,1704.5,1704.2,3.0]
[1659290001433,3.19804672,1704.5,1704.2,4.46585]
[1659290001615,2.89804672,1704.4,1704.2,3.0]
[1659290001842,2.89804672,1704.4,1704.1,1.249]
[1659290002415,3.19124672,1704.4,1704.1,1.249]
[1659290003470,3.19124672,1704.4,1704.1,1.46591]
[1659290003780,2.89804672,1704.4,1704.1,1.46591]
[1659290004781,2.89804672,1704.4,1704.1,1.75434692]
[1659290004944,2.89804672,1704.4,1704.1,1.93032802]
[1659290005989,0.64471435,1704.5,1704.1,1.93032802]
[1659290006189,0.35,1704.7,1704.5,0.00266754]
[1659290006393,3.19804672,1704.7,1704.5,0.00266754]
[1659290007364,3.19804672,1704.7,1704.5,4.46831754]
[1659290007561,3.19804672,1704.7,1704.5,3.00266754]
[1659290007757,3.19804672,1704.7,1704.5,0.00266754]
[1659290007758,6.99118672,1704.7,1704.5,0.00266754]
[1659290009683,3.13857004,1704.6,1704.5,0.00266754]
[1659290010587,0.13857004,1704.6,1704.5,0.00266754]
[1659290011372,0.13513214,1704.6,1704.5,0.00266754]
[1659290015890,0.13513214,1704.6,1704.5,1.46822754]
[1659290016217,0.13513214,1704.6,1704.5,4.46822754]
[1659290018093,0.13513214,1704.6,1704.5,1.46822754]
[1659290023344,0.13513214,1704.6,1704.5,0.00266754]
[1659290025323,1.07298649,1704.7,1704.5,0.00266754]
[1659290025640,3.83590107,1704.7,1704.5,0.00266754]
[1659290025929,3.83590107,1704.7,1704.5,1.46833754]
[1659290027570,2.89804672,1704.6,1704.5,1.46833754]
[1659290027779,2.89804672,1704.6,1704.5,0.00266754]
[1659290031316,3.03317886,1704.6,1704.5,0.00266754]
[1659290031666,6.73317886,1704.6,1704.5,0.00266754]
[1659290031866,6.72972733,1704.6,1704.5,0.00266754]
[1659290032168,3.22972733,1704.6,1704.5,0.00266754]
[1659290032369,6.38172733,1704.6,1704.5,0.00266754]
[1659290038398,0.2931,1704.9,1704.5,6.85535754]
[1659290038601,0.05,1705.2,1704.8,1.227]
[1659290038804,26.1144,1705.3,1705.0,1.227]
[1659290038805,2.85519588,1705.1,1705.0,1.227]
[1659290039049,2.89804672,1705.2,1705.0,2.69211]
[1659290039201,2.89804672,1705.2,1705.1,3.0]
[1659290039400,2.89804672,1705.2,1705.1,1.227]
[1659290039627,14.1007,1705.6,1705.1,1.227]
[1659290039844,14.0507,1705.6,1705.3,1.227]
[1659290040004,11.72,1705.7,1705.3,1.227]
[1659290040607,2.89804672,1705.6,1705.3,1.227]
[1659290041933,2.89804672,1705.6,1705.3,2.69184]
[1659290042108,2.89804672,1705.6,1705.4,3.0]
[1659290043916,3.03317886,1705.6,1705.4,3.0]
[1659290044262,2.89804672,1705.5,1705.4,3.0]
[1659290044423,0.13513214,1705.3,1705.0,0.51694344]